Cogmind - Beta 13 @@@ ROGUE MODE // 2024.05.13 @ 21:21:16 Player: Bace Troncons Result: Destroyed by H-61 Shepherd with Heavy Assault Cannon Performance ------------- Evolutions (2) 1000 Regions Visited (3) 600 Robots Destroyed (34) 170 Value Destroyed (1090) 1090 Prototype IDs (4) 80 Alien Tech Used (0) 0 Bonus (0) 0 TOTAL SCORE: 2940 Bonus ------- None Cogmind --------- Core Integrity 0/550 Matter 128/300 Energy 100/100 System Corruption 0% Temperature Cool (0) Movement Core (350) Ox6 Location -8/Materials Parts ------- > --- POWER (1) -------- (None) > --- PROPULSION (2) --- (None) > --- UTILITY (6) ------ Large Storage Unit Targeting Computer Core Analyzer > --- WEAPON (2) ------- (None) > --- INVENTORY (15) --- Light Treads Improved Carbon-fiber Leg Scrap Shield Fragment (46) Scrap Shield Fragment (44) Peak State ------------ > --- POWER ------------ Subdweller Power Source > --- PROPULSION ------- Improved Carbon-fiber Leg Myomer Leg > --- UTILITY ---------- Large Storage Unit Seismic Detector Targeting Computer Core Analyzer Armor Integrity Analyzer Armor Integrity Analyzer > --- WEAPON ----------- Makeshift Shrapnel Gun Subdweller Shrapnel Launcher > --- INVENTORY -------- Light Ion Engine Light Treads Improved Carbon-fiber Leg Grenade Launcher Scrap Shield Fragment Scrap Shield Fragment [Rating: 35] Favorites ----------- Power Ion Engine Engine Ion Engine Propulsion Light Treads Treads Light Treads Leg Myomer Leg Utility Scrap Shield Device Sensor Array Storage Large Storage Unit Processor Armor Integrity Analyzer Protection Scrap Shield Weapon Light Assault Rifle Energy Gun Medium Laser Ballistic Gun Light Assault Rifle Ballistic Cannon Bore Cannon Launcher Subdweller Shrapnel Launcher Build | -11 -10 -10 -8 ------- Run | Yrd Mat Sub Mat Slots Evolved 4 | . . . 4 Power . | . . . . Propulsion . | . . . . Utility 4 | . . . 4 Weapon . | . . . . Parts Attached 53 | 7 11 20 15 Power 8 | 2 2 3 1 Engine 8 | 2 2 3 1 Core . | . . . . Reactor . | . . . . Propulsion 11 | 2 2 4 3 Treads 5 | 2 2 . 1 Leg 6 | . . 4 2 Wheel . | . . . . Hover . | . . . . Flight . | . . . . Utility 16 | 1 4 4 7 Device 3 | . 1 . 2 Storage 5 | 1 3 . 1 Processor 4 | . . . 4 Hackware . | . . . . Protection 4 | . . 4 . Artifact . | . . . . Weapon 18 | 2 3 9 4 Energy Gun 2 | 1 1 . . Energy Cannon . | . . . . Ballistic Gun 7 | 1 . 4 2 Ballistic Cannon 5 | . 2 3 . Launcher 4 | . . 2 2 Special Weapon . | . . . . Impact Weapon . | . . . . Slashing Weapon . | . . . . Piercing Weapon . | . . . . Special Melee Weapon . | . . . . Unidentified Prototypes . | . . . . Parts Lost 23 | . 1 9 13 Power 4 | . . 2 2 Propulsion 6 | . 1 3 2 Utility 6 | . . 2 4 Weapon 7 | . . 2 5 Highest Loss Streak 10 | . 1 3 10 To Critical Strikes 1 | . . . 1 Average Slot Usage (%) 83 | . 87 80 68 Engine 13 | . 14 13 8 Treads 11 | . 20 3 1 Leg 11 | . . 23 11 Device 5 | . 9 . 9 Storage 7 | . 14 . 8 Protection 5 | . . 11 . Energy Gun 4 | . 10 . . Ballistic Gun 11 | . 10 11 9 Ballistic Cannon 10 | . 6 15 . Naked Turns . | . . . . Heaviest Build 89 | 13 89 52 38 Greatest Support 50 | 40 40 50 43 Greatest Overweight (x) 4 | . 4 1 2 Average Overweight (x) . | . 1 . . Largest Inventory Capacity 25 | 8 25 20 15 Average Capacity 11 | 7 17 5 14 Most Carried 14 | 4 14 13 6 Average Carried 7 | 2 9 4 5 Final Capacity 20 | 8 20 5 15 Final Carried 13 | 4 13 5 4 Class Distribution -------------------- 65% | Mutant 34% | Scavenger-Mutant Dominant Class ---------------- Mutant | -10/Materials Scavenger-Mutant | -10/Subcaves Scavenger-Mutant | -8/Materials Resources | -11 -10 -10 -8 ----------- Run | Yrd Mat Sub Mat Matter Collected 1394 | 232 190 822 150 Remotely . | . . . . Salvage Created 1085 | . 570 334 181 Parts 72 | . 23 29 20 Haulers Intercepted 1 | . 1 . . Recyclers Shooed . | . . . . Parts Field Recycled . | . . . . Retrieved Matter . | . . . . Parts Self-Destructed 7 | . . 7 . Prevented . | . . . . Kills | -11 -10 -10 -8 ------- Run | Yrd Mat Sub Mat Combat Hostiles Destroyed 30 | . 10 12 8 Guns 15 | . 10 3 2 Cannons 9 | . . 9 . AOE 6 | . . . 6 Classes Destroyed 9 | . 6 1 2 Hauler 1 | . 1 . . Recycler 1 | . 1 . . Operator 1 | . 1 . . Watcher 1 | . 1 . . Swarmer 7 | . 3 . 4 Grunt 8 | . 7 . 1 Sentry 1 | . . . 1 Specialist 2 | . . . 2 Subdweller 12 | . . 12 . Best Kill Streak 5 | . 4 4 5 Combat Bots Only 5 | . 4 4 5 Max Kills in Single Turn 2 | . 1 2 2 Gunslinging . | . . . . Exploded 2 | . . . 2 Melee . | . . . . Uniques/NPCs Destroyed . | . . . . Combat | -11 -10 -10 -8 -------- Run | Yrd Mat Sub Mat Hostile Shots Fired 200 | . 56 75 69 Missed 50 | . 14 20 16 Damage Taken 3350 | . 484 1512 1354 Core 795 | . 98 141 556 Absorbed by Shields . | . . . . Regen/Repaired (Parts) 128 | . 128 . . Core Remaining (%) 52 | 100 . 4 . Volleys Fired 141 | . 49 71 21 Largest 2 | . 2 2 2 Hottest 87 | . 70 87 68 Shots Fired 262 | . 98 137 27 Gun 161 | . 96 49 16 Cannon 86 | . 2 84 . Launcher 15 | . . 4 11 Special . | . . . . Kinetic 204 | . 50 133 21 Thermal 48 | . 48 . . Explosive 10 | . . 4 6 Electromagnetic . | . . . . Robot Hit Streak 8 | . 8 7 8 Robot Miss Streak 4 | . 3 2 4 Penetration Max . | . . . . Secondary Targets 2 | . 2 . . Max Gunslinging Chain 1 | . 1 . . Shots Hit Robots 142 | . 67 57 18 Core Hits 70 | . 28 21 21 Critical Kills 2 | . . 2 . Critical Parts Destroyed 1 | . . 1 . Critical Strikes 9 | . 3 6 . Burn 3 | . 3 . . Destroy 5 | . . 5 . Blast 1 | . . 1 . Melee Attacks . | . . . . Impact . | . . . . Slashing . | . . . . Piercing . | . . . . Sneak Attacks . | . . . . Combat Hostiles . | . . . . Follow-up Attacks . | . . . . Damage Inflicted 2718 | . 703 1084 931 Guns 1244 | . 686 318 240 Cannons 783 | . 17 766 . Explosions 691 | . . . 691 Melee . | . . . . Ramming . | . . . . Kinetic 1997 | . 278 1084 635 Thermal 425 | . 425 . . Explosive 296 | . . . 296 Electromagnetic . | . . . . Impact . | . . . . Slashing . | . . . . Piercing . | . . . . Highest Corruption 2 | . 2 2 . Average Corruption 2 | . 2 2 . Corruption Purged . | . . . . Corruption Blocked . | . . . . Effects 32 | . 7 25 . Message Errors 7 | . 2 5 . Matter Fused 8 | . 2 6 . Heat Flow Errors 1 | . . 1 . Energy Discharges 6 | . 2 4 . Data Loss (minor) 6 | . . 6 . Data Loss (major) 3 | . 1 2 . Misfires 1 | . . 1 . Overload Shots . | . . . . Overflow Damage 9 | . . . 9 Projectiles . | . . . . Explosions 9 | . . . 9 Melee . | . . . . Knockbacks 10 | . . 10 . Impact . | . . . . Kinetic 10 | . . 10 . Secondary . | . . . . Self-Inflicted Damage 264 | . . 5 259 Shots 9 | . . 1 8 Rammed . | . . . . Targets Rammed . | . . . . Kicked . | . . . . Crushed . | . . . . Highest Temperature 366 | . 366 275 43 Average Temperature 93 | . 115 48 17 Received Heat Transfer 1017 | . 240 543 234 Effects 4 | . 4 . . Shutdowns 1 | . 1 . . Energy Bleed 1 | . 1 . . Damage (minor) 2 | . 2 . . Siege Activations . | . . . . Robots Corrupted . | . . . . Combat Hostiles . | . . . . Parts Fried . | . . . . Impact Corruptions . | . . . . Robots Melted . | . . . . Combat Hostiles . | . . . . Parts Melted 2 | . 1 1 . Heat Transferred 1480 | . 1480 . . Parts Sabotaged . | . . . . Parts Stolen . | . . . . Parts Stripped . | . . . . Power Chain Reactions . | . . . . Alert | -11 -10 -10 -8 ------- Run | Yrd Mat Sub Mat Peak Influence 275 | . 241 . 275 Initial . | . . . . Average 52 | . 39 . 163 Maximum Alert Level 1 | . 1 . 1 Low Security (%) 88 | 100 94 . 39 Level 1 11 | . 5 . 60 Level 2 . | . . . . Level 3 . | . . . . Level 4 . | . . . . Level 5 . | . . . . High Security . | . . . . Max Security . | . . . . Squads Dispatched 4 | . 1 . 3 Investigation . | . . . . Extermination . | . . . . Reinforcement 4 | . 1 . 3 Assault . | . . . . Garrison . | . . . . Intercept . | . . . . Searches Triggered . | . . . . Construction Impeded . | . . . . Haulers Reinforced . | . . . . Active Scanning Responses . | . . . . Cargo Convoy Interrupts . | . . . . Stealth | -11 -10 -10 -8 --------- Run | Yrd Mat Sub Mat Distress Signals . | . . . . Communications Jammed . | . . . . Distress Signals . | . . . . Times Spotted 49 | . 17 19 13 Peak Tracking Total 7 | . 4 7 6 Tactical Retreats 1 | . . . 1 Traps | -11 -10 -10 -8 ------- Run | Yrd Mat Sub Mat Traps Triggered 3 | . 1 2 . Indirectly . | . . . . Trap Hack Attempts . | . . . . Triggered . | . . . . Disarmed . | . . . . Reprogrammed . | . . . . Reused . | . . . . Traps Extracted . | . . . . Installed . | . . . . Triggered . | . . . . Machines | -11 -10 -10 -8 ---------- Run | Yrd Mat Sub Mat Machines Disabled 3 | . 1 . 2 Max in Single Turn 1 | . 1 . 1 Machines Repaired . | . . . . Machines Dismantled . | . . . . Machines Sabotaged . | . . . . Overloaded Fab Kills . | . . . . Hacking | -11 -10 -10 -8 --------- Run | Yrd Mat Sub Mat Machines Accessed 9 | . 7 1 1 Terminals 7 | . 6 . 1 Fabricators . | . . . . Repair Stations 1 | . 1 . . Recycling Units . | . . . . Scanalyzers . | . . . . Garrison Access . | . . . . Total Hacks 18 | . 14 3 1 Successful 12 | . 9 3 . Failed 6 | . 5 . 1 Catastrophic 2 | . 1 . 1 Database Lockouts . | . . . . Manual 3 | . 1 2 . Terminals 13 | . 12 . 1 Fabricators . | . . . . Repair Stations 2 | . 2 . . Recycling Units . | . . . . Scanalyzers . | . . . . Garrison Access . | . . . . Terminal Hacks 10 | . 7 3 . Record 4 | . 1 3 . Prototype ID Bank 2 | . 2 . . Branch Access Points 1 | . 1 . . Terminal Index 1 | . 1 . . Transport Status 1 | . 1 . . Hauler Manifests 1 | . 1 . . Fabricator Hacks . | . . . . Repair Station Hacks 2 | . 2 . . Scan Component 1 | . 1 . . Repair 1 | . 1 . . Recycling Unit Hacks . | . . . . Scanalyzer . | . . . . Garrison Access Hacks . | . . . . Unauthorized Hacks . | . . . . Terminals . | . . . . Fabricators . | . . . . Repair Stations . | . . . . Recycling Units . | . . . . Scanalyzers . | . . . . Garrison Access . | . . . . Data Cores Recovered 1 | . 1 . . Used . | . . . . Hacking Detections 7 | . 6 . 1 Full Trace Events . | . . . . Feedback Events . | . . . . Feedback Blocked . | . . . . Robot Schematics Acquired . | . . . . Robots Built . | . . . . Authchips . | . . . . Time . | . . . . Total Robot Build Rating . | . . . . Part Schematics Acquired . | . . . . Parts Built . | . . . . Authchips . | . . . . Time . | . . . . Total Part Build Rating . | . . . . Parts Repaired 1 | . 1 . . Time 26 | . 26 . . Parts Recycled . | . . . . Recycled Matter . | . . . . Retrieved Matter . | . . . . Retrieved Components . | . . . . Parts Scanalyzed . | . . . . Part Schematics Acquired . | . . . . Parts Damaged . | . . . . Bothacking | -11 -10 -10 -8 ------------ Run | Yrd Mat Sub Mat Used RIF Installer . | . . . . Robots Hacked . | . . . . Non-combat . | . . . . Combat . | . . . . Robot Hacks Applied . | . . . . Relay Couplers Released . | . . . . Fabnet Peak Effective % . | . . . . Robots Rewired . | . . . . Allies Hacked . | . . . . Hacks Repelled . | . . . . Allies | -11 -10 -10 -8 -------- Run | Yrd Mat Sub Mat Total Allies . | . . . . Largest Group . | . . . . Highest-Rated Group . | . . . . Highest-Rated Ally . | . . . . Total Orders . | . . . . Ally Attacks . | . . . . Total Damage . | . . . . Kills . | . . . . Allies Corrupted . | . . . . Allies Melted . | . . . . Intel | -11 -10 -10 -8 ------- Run | Yrd Mat Sub Mat Robot Analysis Total . | . . . . Derelict Logs Recovered 2 | . . 2 . Drone Launches . | . . . . Drone Recoveries . | . . . . Exploration | -11 -10 -10 -8 ------------- Run | Yrd Mat Sub Mat Turns Passed 4526 | 77 2051 2119 279 Spaces Moved 1924 | 42 541 1235 106 Core 2 | 2 . . . Treads 689 | 40 541 96 12 Legs 1233 | . . 1139 94 Wheels . | . . . . Hover . | . . . . Flight . | . . . . Fastest Speed 50 | 50 160 120 120 Average Speed 163 | 154 253 124 170 Slowest Speed 480 | 160 480 240 260 Overloaded Moves . | . . . . Propulsion Burnouts . | . . . . Robots Hopped . | . . . . Cave-ins Triggered . | . . . . Exploration Rate (%) 39 | 4 79 65 9 Regions Visited 3 Branch Regions 1 Pre-discovered Areas 2 | . . 2 . Known Exits Taken 1 | . . 1 . Unknown Exits Taken 2 | 1 1 . . Scrap Searched 6 | . . 6 . Spaces Dug 41 | . . 29 12 Terrain Destroyed 154 | . . 40 114 Melee . | . . . . Projectile 11 | . . 11 . AOE 143 | . . 29 114 Terrain Rammed . | . . . . Walls Destroyed . | . . . . Machines Disabled . | . . . . Actions | -11 -10 -10 -8 --------- Run | Yrd Mat Sub Mat Total 3039 | 51 1131 1684 173 Wait 873 | . 514 330 29 Move 1921 | 41 540 1234 106 Hop . | . . . . Pick Up 22 | 3 11 8 . Fast Attach 33 | 6 6 11 10 Attach 7 | . 1 2 4 Detach 5 | . 3 . 2 Swap 13 | 1 4 7 1 Drop 20 | . 3 17 . Fire 141 | . 49 71 21 Melee . | . . . . Ram . | . . . . Kick . | . . . . Crush . | . . . . Escape Stasis . | . . . . Rewire . | . . . . Trap . | . . . . Miscellaneous 4 | . . 4 . Route ------- -11/Scrapyard -10/Materials (discovered 5 exits: [*Mat x2] / *Min x2 / *Sub) -10/Subcaves (discovered 3 exits: *Mat x2 / Rec) -8/Materials History --------- Turn | Location | Event 21 | -11/Scrapyard | Discovered new exit (range 16) 78 | -11/Scrapyard | Entered Materials 147 | -10/Materials | Discovered new exit (range 6) 307 | -10/Materials | Build established: Mutant 488 | -10/Materials | Discovered new exit (range 16) 627 | -10/Materials | Identified exit to Mines 1582 | -10/Materials | Repaired Lgt. Treads 1706 | -10/Materials | Discovered new exit (range 7) 2072 | -10/Materials | Discovered new exit (range 7) 2129 | -10/Materials | Entered Subcaves 2256 | -10/Subcaves | Shifting Twisted Machinery released Battle Cannon 2303 | -10/Subcaves | Ambushed by swarm of Subdwellers 2307 | -10/Subcaves | Ambushed by Subdwellers from Twisted Machinery 2318 | -10/Subcaves | Ambushed by Subdweller buried in earth 2323 | -10/Subcaves | Core integrity fell below 50% 2345 | -10/Subcaves | Lost 3 allies 2559 | -10/Subcaves | Shifting Twisted Machinery released Battle Rifle 2855 | -10/Subcaves | Learned location of Zion (-6) 2855 | -10/Subcaves | Met a Zionite searching for "candidates" 3037 | -10/Subcaves | Build established: Scavenger-Mutant 3325 | -10/Subcaves | A swath of the cavern ceiling suddenly collapsed 3418 | -10/Subcaves | Learned Materials security intel 3599 | -10/Subcaves | Visited Clippyterm 3603 | -10/Subcaves | Identified exit to Materials 3603 | -10/Subcaves | Identified exit to Recycling 4062 | -10/Subcaves | Core integrity fell below 20% 4092 | -10/Subcaves | Lost 3 parts (1p1n1u) 4180 | -10/Subcaves | Shifting Twisted Machinery released Riot Gun 4197 | -10/Subcaves | Disturbed a concealed Subdweller 4248 | -10/Subcaves | Entered Materials 4248 | -8/Materials | Evolved 4 slots: Utility x4 4459 | -8/Materials | Lost 3 parts (1u2w) 4517 | -8/Materials | Core integrity fell below 50% 4522 | -8/Materials | Core integrity fell below 20% 4527 | -8/Materials | Destroyed by H-61 Shepherd with Heavy Assault Cannon Last Messages --------------- 04512_ G-47 Trooper destroyed. 04512_ H-61 Shepherd calls for reinforcements. 04512_ ALERT: Hostile activity reported, dispatching reinforcements to area. 04512_ Sub. Shrapnel Launcher destroyed. 04513_ Penetrated by Slug. 04514_ Mak. Shrapnel Gun destroyed. 04514_ Armor Integrity Analyzer destroyed. 04514_ Critical hit (Blast). 04516_ Lgt. Ion Engine destroyed. 04518_ Armor Integrity Analyzer destroyed. 04518_ Critical hit (Blast). 04519_ The unstable cave ceiling collapses. 04521_ G-47 Trooper destroyed. 04524_ Penetrated by Slug. 04525_ Imp. Carbon-fiber Leg destroyed. 04525_ U-05 Engineer lays Concrete. 04527_ Penetrated by Slug. 04527_ U-05 Engineer builds a Wall. 04527_ Grenade Launcher destroyed. Map ----- +----------------------------------------------------+ | ???????????????????????????????? | | ???????????????????????????????? | | ???????????????????????????????? | | ???????????????????????????????? | | ???????????????????????????????? | | ???????????????????????????????? | | ???????????????????????????????? | | ???????????????????????????????? | | ???????????????????????????????? | | ???????????????????????????????? | | ???????????????????????????????? | | ???????????????????????????????? | | ???????????????????????????????? | | ???????????????????????????????? | | ????????###????? #????????????? | | ????????! ???# #????????????? | | ???????? """ # #????????????? | | ???????? """ #????????????? | | ???????? """ #????????????? | | ???????? +????????????? | | ??????## #????????????? | | ??????# ##???????????? | | ??????# [ ###?????????? | | ?????## ????????? | | ?????#; H h w ????????? | | ??????#@ ????????? | | ??????# #???????????? | | ???####w # ###???????????? | | ??## # # ###???????????????? | | ??# # ###########????????????? | | ?## #[# #????????????? | | ?# # # #????????????? | | ?## # # ! #????????????? | | ?# # [ ##???????????? | | ?## + ##??????????? | | ??# u# ""#??????????? | | ??# # * " #??????????? | | ??##" # [ " #??????????? | | ???#" ##"""#""""" #??????????? | | ???## #######" #??????????? | | ????# # ######??????????? | | ????# # #???????????????? | | ????# # #???????????????? | | ????# + #???????????????? | | ????# # "T" #???????????????? | | ????# # #???????????????? | | ????# ##########?????????????? | | ????# # #?????????????? | | ????# # #?????????????? | | ????# # #?????????????? | +----------------------------------------------------+ Best States ------------- Heat Dissipation 31 Energy Generation 15 Energy Capacity 250 Matter Stores 300 Matter Capacity 300 Sight Range 16 Robot Scan Range 14 Terrain Scan Density 10 Armor Coverage 800 Core Shielding 20 Evasion (%) 55 Targeting Accuracy 5 Core Analysis 6 Armor Integrity Analysis 30 Recoil Reduction 5 Item Schematics ----------------- None Robot Schematics ------------------ None Fabricated ------------ Nothing Alien Tech Used ----------------- None Achievements -------------- None Challenges ------------ None Game ------ Seed ShadeDroneDerivative Manual? 0 Play Time 00:32:31 Cumulative 67.9 hours Start 2024.05.13 @ 20:51:37 End 2024.05.13 @ 21:21:16 Sessions 1 Manual Loads 0 Difficulty Rogue Special Mode None Game No. 105 Rogue 105 Adventurer 0 Explorer 0 Win Type - Total 1 Types 1/0/0/0/0/0/0/0/0 Lore% 33 Gallery% 40 Achievement% 31 Wizard Run 0 Options --------- Layout 1 ASCII 0 Keyboard 1 Movement Numpad Keybinds 0 Fullscreen 1 Font 24/Smallcaps Map View 50x35 Zoom Use 0% Tactical HUD 1 Map Filters NONE Filters NONE Steam 1 RUN: 76553b51-e468-483e-892a-b9a244592304